Cogmind - Beta 15 @@@ ROGUE MODE // 2025.06.25 @ 11:30:24 Player: EX-OCT Result: Destroyed by R7-MSJ(R) with Subdweller Beam Cannon Performance ------------- Evolutions (0) 0 Regions Visited (2) 400 Robots Destroyed (21) 105 Value Destroyed (486) 486 Prototype IDs (13) 260 Alien Tech Used (0) 0 Bonus (0) 0 TOTAL SCORE: 1251 Bonus ------- None Cogmind --------- Core Integrity 0/250 Matter 300/300 Energy 170/170 System Corruption 0% Temperature Cool (9) Movement Rolling (150) Ox4 Location -10/Subcaves Parts ------- > --- POWER (1) -------- Makeshift Power Source > --- PROPULSION (2) --- Light Treads Armored Wheel > --- UTILITY (2) ------ High-capacity Storage Unit Light Armor Plating > --- WEAPON (2) ------- Assault Rifle Flail > --- INVENTORY (20) --- Arachnoskeleton Armored Wheel Improved Heat Sink Large Matter Pod (150) Structural Scanner Improved Terrain Scanner Light Armor Plating Light Armor Plating Grenade Launcher Grenade Launcher Datajack Flail Peak State ------------ > --- POWER ------------ Makeshift Power Source > --- PROPULSION ------- Armored Wheel Armored Wheel > --- UTILITY ---------- High-capacity Storage Unit Core Shielding > --- WEAPON ----------- Subdweller Laser Flail > --- INVENTORY -------- Light Treads Arachnoskeleton Armored Wheel Improved Heat Sink Large Matter Pod Structural Scanner Improved Terrain Scanner Light Armor Plating Light Armor Plating Light Armor Plating Particle Gun Assault Rifle Grenade Launcher Grenade Launcher Flail [Rating: 18] Favorites ----------- Power Light Ion Engine Engine Light Ion Engine Propulsion Armored Wheel Treads Light Treads Wheel Armored Wheel Utility High-capacity Storage Unit Device Structural Scanner Storage High-capacity Storage Unit Protection Core Shielding Weapon Particle Gun Energy Gun Particle Gun Ballistic Gun Assault Rifle Ballistic Cannon Light Cannon Launcher Grenade Launcher Impact Weapon Flail Build | -11 -10 -10 ------- Run | Yrd Mat Sub Slots Evolved . | . . . Power . | . . . Propulsion . | . . . Utility . | . . . Weapon . | . . . Parts Attached 30 | 8 14 8 Power 4 | 1 1 2 Engine 4 | 1 1 2 Core . | . . . Reactor . | . . . Propulsion 9 | 4 3 2 Treads 2 | 2 . . Leg . | . . . Wheel 7 | 2 3 2 Hover . | . . . Flight . | . . . Utility 7 | 1 3 3 Device 2 | 1 . 1 Storage 2 | . 2 . Processor . | . . . Hackware . | . . . Protection 3 | . 1 2 Artifact . | . . . Weapon 10 | 2 7 1 Energy Gun 4 | 2 1 1 Energy Cannon . | . . . Ballistic Gun 2 | . 2 . Ballistic Cannon 1 | . 1 . Launcher 1 | . 1 . Special Weapon . | . . . Impact Weapon 2 | . 2 . Slashing Weapon . | . . . Piercing Weapon . | . . . Special Melee Weapon . | . . . Unidentified Prototypes . | . . . Parts Lost 8 | . 2 6 Power 3 | . 1 2 Propulsion 2 | . . 2 Utility . | . . . Weapon 3 | . 1 2 Highest Loss Streak 4 | . 2 4 To Critical Strikes 1 | . . 1 Average Backups 13 | 2 11 17 Power 1 | . 1 . Propulsion 4 | 1 4 4 Utility 4 | . 3 6 Weapon 3 | . 2 4 Tool/Special . | . . . Unused Backups 7 | . 1 6 Power . | . . . Propulsion 1 | . . 1 Utility 3 | . . 3 Weapon 2 | . 1 1 Tool/Special 1 | . . 1 Average Slot Usage (%) 98 | . 98 99 Engine 13 | . 13 14 Treads 2 | . 2 1 Wheel 25 | . 25 26 Device 3 | . 1 5 Storage 12 | . 12 14 Protection 11 | . 13 8 Energy Gun 11 | . 8 15 Ballistic Gun 7 | . 12 . Ballistic Cannon 2 | . 4 . Impact Weapon 6 | . 2 11 Peak Build Rating 18 | 8 13 18 Average Rating 11 | 4 10 14 On Entrance 7 | . 8 13 Naked Turns . | . . . Heaviest Build 51 | 8 51 51 Greatest Support 40 | 40 24 24 Greatest Overweight (x) 4 | . 2 4 Average Overweight (x) 1 | . 1 2 Largest Inventory Capacity 20 | 5 20 20 Average Capacity 17 | 5 17 20 Most Carried 20 | 5 18 20 Average Carried 13 | 2 11 18 Final Capacity 20 | 5 20 20 Final Carried 18 | 5 18 14 Class Distribution -------------------- 100% | Mutant Dominant Class ---------------- Mutant | -10/Materials Mutant | -10/Subcaves Resources | -11 -10 -10 ----------- Run | Yrd Mat Sub Matter Collected 984 | 280 485 219 Remotely . | . . . Salvage Created 683 | 91 440 152 Parts 44 | 7 32 5 Haulers Intercepted 2 | . 2 . Recyclers Shooed . | . . . Parts Field Recycled . | . . . Retrieved Matter . | . . . Parts Self-Destructed 14 | . . 14 Prevented . | . . . Kills | -11 -10 -10 ------- Run | Yrd Mat Sub Combat Hostiles Destroyed 13 | . 10 3 Guns 4 | . 2 2 Cannons 5 | . 5 . AOE 3 | . 3 . Classes Destroyed 7 | 2 4 1 Tunneler 2 | 2 . . Hauler 2 | . 2 . Recycler 1 | 1 . . Watcher 3 | . 3 . Swarmer 3 | . 3 . Grunt 7 | . 7 . Subdweller 3 | . . 3 Best Kill Streak 5 | 3 5 1 Combat Bots Only 4 | . 4 1 Max Kills in Single Turn 2 | 1 2 1 Gunslinging . | . . . Exploded 2 | . 2 . Melee . | . . . Uniques/NPCs Destroyed . | . . . Combat | -11 -10 -10 -------- Run | Yrd Mat Sub Hostile Shots Fired 103 | . 54 49 Missed 28 | . 14 14 Hits 75 | . 40 35 Projectile 75 | . 40 35 Critical Strikes 4 | . 3 1 Actively Blocked 2 | . 2 . Damage Taken 1264 | . 441 823 Core 270 | . 89 181 Absorbed by Shields . | . . . Redirected to Shielding 48 | . 19 29 Core Remaining (%) 100 | 100 . . Volleys Fired 62 | 7 40 15 Largest 2 | 2 2 2 Hottest 125 | 100 85 125 Shots Fired 117 | 14 73 30 Gun 89 | 14 45 30 Cannon 25 | . 25 . Launcher 3 | . 3 . Special . | . . . Kinetic 68 | . 68 . Thermal 46 | 14 2 30 Explosive 3 | . 3 . Electromagnetic . | . . . Robot Hit Streak 14 | 3 6 14 Robot Miss Streak 3 | 3 3 1 Penetration Max . | . . . Secondary Targets . | . . . Shots Hit Robots 84 | 7 48 29 Core Hits 31 | 4 23 4 Critical Kills . | . . . Critical Parts Destroyed 2 | . . 2 Critical Strikes 5 | 3 . 2 Burn 3 | 3 . . Smash 2 | . . 2 Melee Attacks 30 | . 3 27 Impact 30 | . 3 27 Slashing . | . . . Piercing . | . . . Sneak Attacks 1 | . 1 . Combat Hostiles . | . . . Follow-up Attacks . | . . . Damage Inflicted 1582 | 99 915 568 Guns 989 | 99 405 485 Cannons 291 | . 291 . Explosions 153 | . 153 . Melee 149 | . 66 83 Ramming . | . . . Kinetic 678 | . 678 . Thermal 602 | 99 18 485 Explosive 153 | . 153 . Electromagnetic . | . . . Impact 149 | . 66 83 Slashing . | . . . Piercing . | . . . Highest Corruption . | . . . Average Corruption . | . . . Corruption Purged . | . . . Corruption Blocked . | . . . Overload Shots . | . . . Overflow Damage 83 | . . 83 Projectiles . | . . . Explosions . | . . . Melee 83 | . . 83 Knockbacks 4 | . 3 1 Impact 1 | . . 1 Kinetic 2 | . 2 . Secondary 1 | . 1 . Self-Inflicted Damage . | . . . Shots . | . . . Rammed . | . . . Targets Rammed . | . . . Kicked . | . . . Crushed . | . . . Highest Temperature 117 | 117 48 75 Average Temperature 33 | 55 10 38 Received Heat Transfer 363 | . 237 126 Siege Activations . | . . . Martial Activations . | . . . Shielding Activations . | . . . Robots Disrupted . | . . . Combat Hostiles . | . . . Robots Corrupted 1 | . . 1 Combat Hostiles 1 | . . 1 Parts Fried 2 | . . 2 Impact Corruptions 2 | . . 2 Robots Melted . | . . . Combat Hostiles . | . . . Parts Melted 3 | 1 . 2 Heat Transferred 1398 | 518 37 843 Parts Sabotaged . | . . . Parts Stolen . | . . . Parts Stripped . | . . . Power Chain Reactions . | . . . Alert | -11 -10 -10 ------- Run | Yrd Mat Sub Maximum Alert Level . | . . . Low Security (%) 100 | 100 100 . Level 1 . | . . . Level 2 . | . . . Level 3 . | . . . Level 4 . | . . . Level 5 . | . . . High Security . | . . . Max Security . | . . . Peak Influence 169 | 5 169 . Initial 3 | . 3 . Average 52 | 1 57 . Influence Increases 403 | 15 388 . Destroy 0b10 Robot/C 200 | . 200 . Destroy 0b10 Robot/NC 40 | 15 25 . Destroy Leader 60 | . 60 . Successful Hack 46 | . 46 . Select Force Hacks 30 | . 30 . Destroy Structure 12 | . 12 . Lose Combat Pursuer 15 | . 15 . Influence Decreases 403 | 10 393 . Entered New Map 2 | . 2 . Time Decay 339 | 10 329 . Lost Part 20 | . 20 . Purge Threat 42 | . 42 . Squads Dispatched 2 | . 2 . Investigation 2 | . 2 . Extermination . | . . . Reinforcement . | . . . Assault . | . . . Garrison . | . . . Intercept . | . . . Searches Triggered . | . . . Construction Impeded . | . . . Haulers Reinforced . | . . . Active Scanning Responses . | . . . Cargo Convoy Interrupts . | . . . Stealth | -11 -10 -10 --------- Run | Yrd Mat Sub Distress Signals 2 | . 2 . Communications Jammed . | . . . Distress Signals . | . . . Times Spotted 18 | . 14 4 Peak Tracking Total 5 | . 5 2 Tactical Retreats 1 | . 1 . Traps | -11 -10 -10 ------- Run | Yrd Mat Sub Traps Triggered 1 | . 1 . Indirectly . | . . . Trap Hack Attempts . | . . . Triggered . | . . . Disarmed . | . . . Reprogrammed . | . . . Reused . | . . . Traps Extracted . | . . . Installed . | . . . Triggered . | . . . Machines | -11 -10 -10 ---------- Run | Yrd Mat Sub Machines Disabled 1 | . . 1 Max in Single Turn 1 | . . 1 Machines Repaired . | . . . Machines Dismantled . | . . . Machines Sabotaged . | . . . Overloaded Fab Kills . | . . . Hacking | -11 -10 -10 --------- Run | Yrd Mat Sub Machines Accessed 10 | . 9 1 Terminals 8 | . 8 . Fabricators . | . . . Repair Stations . | . . . Recycling Units 1 | . 1 . Scanalyzers . | . . . Garrison Access . | . . . Total Hacks 39 | . 30 9 Successful 27 | . 18 9 Failed 11 | . 11 . Catastrophic . | . . . Database Lockouts 1 | . 1 . Manual 25 | . 25 . Terminals 28 | . 28 . Fabricators . | . . . Repair Stations . | . . . Recycling Units 2 | . 2 . Scanalyzers . | . . . Garrison Access . | . . . Terminal Hacks 16 | . 7 9 Record 8 | . . 8 Part Schematic 1 | . 1 . Robot Analysis 3 | . 3 . Prototype ID Bank 1 | . 1 . Unreport Threat 1 | . 1 . Zone Layout 1 | . 1 . Proto ID Catalog 1 | . . 1 Fabricator Hacks . | . . . Repair Station Hacks . | . . . Recycling Unit Hacks . | . . . Scanalyzer . | . . . Garrison Access Hacks . | . . . Unauthorized Hacks 11 | . 11 . Terminals 10 | . 10 . Botnet 5 | . 5 . Skim 5 | . 5 . Fabricators . | . . . Repair Stations . | . . . Recycling Units 1 | . 1 . Tunnel 1 | . 1 . Scanalyzers . | . . . Garrison Access . | . . . Data Cores Recovered . | . . . Used . | . . . Hacking Detections 8 | . 8 . Full Trace Events . | . . . Feedback Events . | . . . Feedback Blocked . | . . . Robot Schematics Acquired . | . . . Robots Built . | . . . Authchips . | . . . Time . | . . . Total Robot Build Rating . | . . . Part Schematics Acquired 1 | . 1 . Parts Built . | . . . Authchips . | . . . Time . | . . . Total Part Build Rating . | . . . Parts Repaired . | . . . Time . | . . . Parts Recycled . | . . . Recycled Matter . | . . . Retrieved Matter . | . . . Retrieved Components . | . . . Parts Scanalyzed . | . . . Part Schematics Acquired . | . . . Parts Damaged . | . . . Bothacking | -11 -10 -10 ------------ Run | Yrd Mat Sub Used RIF Installer . | . . . Robots Hacked . | . . . Non-combat . | . . . Combat . | . . . Robot Hacks Applied . | . . . Relay Couplers Released . | . . . Fabnet Peak Effective % . | . . . Robots Rewired . | . . . Allies Hacked . | . . . Hacks Repelled . | . . . Allies | -11 -10 -10 -------- Run | Yrd Mat Sub Total Allies . | . . . Largest Group . | . . . Highest-Rated Group . | . . . Highest-Rated Ally . | . . . Total Orders . | . . . Ally Attacks . | . . . Total Damage . | . . . Kills . | . . . Allies Corrupted . | . . . Allies Melted . | . . . Intel | -11 -10 -10 ------- Run | Yrd Mat Sub Active Infowar (turns) 426 | 6 127 293 Terrain 133 | 6 127 . Structural 293 | . . 293 Robot Analysis Total 3 | . 3 . Derelict Logs Recovered 2 | . . 2 Drone Launches . | . . . Drone Recoveries . | . . . Exploration | -11 -10 -10 ------------- Run | Yrd Mat Sub Turns Passed 1947 | 97 1087 763 Spaces Moved 1303 | 59 755 489 Core 4 | 4 . . Treads 9 | 9 . . Legs . | . . . Wheels 1290 | 46 755 489 Hover . | . . . Flight . | . . . Fastest Speed 50 | 50 80 105 Average Speed 113 | 102 109 121 Slowest Speed 160 | 160 120 150 Overloaded Moves . | . . . Propulsion Burnouts . | . . . Robots Hopped . | . . . Potential Cave-ins 3 | . . 3 Cave-ins Triggered . | . . . Exploration Rate (%) 48 | 4 97 44 Regions Visited 2 Branch Regions 1 Pre-discovered Areas 4 | . 4 . Known Exits Taken 1 | . 1 . Unknown Exits Taken 1 | 1 . . Scrap Searched . | . . . Spaces Dug 15 | . 1 14 Terrain Destroyed 25 | . 11 14 Melee 15 | . 1 14 Projectile . | . . . AOE 10 | . 10 . Terrain Rammed . | . . . Walls Destroyed . | . . . Machines Disabled . | . . . Actions | -11 -10 -10 --------- Run | Yrd Mat Sub Total 1594 | 77 931 586 Wait 129 | . 97 32 Move 1301 | 58 754 489 Hop . | . . . Pick Up 21 | 3 14 4 Fast Attach 11 | 7 4 . Attach 8 | . 1 7 Detach 1 | 1 . . Swap 21 | 1 12 8 Drop 10 | . 6 4 Fire 62 | 7 40 15 Melee 30 | . 3 27 Ram . | . . . Kick . | . . . Crush . | . . . Escape Stasis . | . . . Rewire . | . . . Trap . | . . . Miscellaneous . | . . . Route ------- -11/Scrapyard -10/Materials (discovered 6 exits: [*Mat x3] / [*Min x2] / *Sub) -10/Subcaves (discovered 3 exits: *Mat x2 / Rec) History --------- Turn | Location | Event 7 | -11/Scrapyard | Discovered new exit (range 15) 98 | -11/Scrapyard | Entered Materials 325 | -10/Materials | Build established: Mutant 386 | -10/Materials | Discovered new exit (range 6) 398 | -10/Materials | Discovered new exit (range 10) 529 | -10/Materials | Discovered new exit (range 14) 531 | -10/Materials | Discovered new exit (range 10) 676 | -10/Materials | Discovered new exit (range 3) 793 | -10/Materials | Central database locked down 861 | -10/Materials | Learned 4 Subcaves zone layouts 920 | -10/Materials | Learned Recycling recycling unit intel 969 | -10/Materials | Learned location of Storage (-9) 1010 | -10/Materials | Learned location of Subcaves (-10) 1062 | -10/Materials | Identified exit to Subcaves 1072 | -10/Materials | Learned 4 Subcaves zone layouts 1122 | -10/Materials | Learned location of Mines (-9) 1185 | -10/Materials | Entered Subcaves 1186 | -10/Subcaves | Approached by a straggling Scientist 1186 | -10/Subcaves | Identified exit to Materials 1187 | -10/Subcaves | Identified exit to Recycling 1190 | -10/Subcaves | Learned 2 Materials zone layouts 1463 | -10/Subcaves | Visited 4L-MR0's lab 1477 | -10/Subcaves | Found Arachnoskeleton 1568 | -10/Subcaves | Learned Materials terminal intel 1675 | -10/Subcaves | Core integrity fell below 50% 1705 | -10/Subcaves | Core integrity fell below 20% 1749 | -10/Subcaves | Shifting Twisted Machinery released Sub. Power Source 1936 | -10/Subcaves | Lost 4 parts (1p1n2w) 1948 | -10/Subcaves | Destroyed by R7-MSJ(R) with Subdweller Beam Cannon Last Messages --------------- 01901_ CN-XAF(R) suffers critical hit (Smash). 01901_ Destroyed Sub. Machine Gun. 01901_ CN-XAF(R) system corrupted by crushing effect. 01901_ CN-XAF(R) destroyed. 01903_ Acquired 26 matter. 01905_ CE-HWG(R) suffers critical hit (Smash). 01905_ Destroyed Disposable Heat Sink. 01905_ CE-HWG(R) system corrupted by crushing effect. 01905_ CE-HWG(R) knocked back. 01905_ Critical hit (Destroy). 01905_ Arm. Wheel destroyed. 01906_ CE-HWG(R) system terminally corrupted. 01906_ Sub. Power Source fried. 01906_ Sub. Optics fried. 01911_ Acquired Datajack. 01912_ Dropped Core Shielding. 01914_ Acquired 49 matter. 01948_ R7-MSJ(R): "WEHOME!" Map ----- +----------------------------------------------------+ | # % ##???????????????????? | | #### ### ## ###????????????????????# | | ##### ##### ###### ###???????????????????? | | ######################## ##?????????????????????# | | #####?######?######??######????????????????????? | | ##????????????????????####????????????????????? | | ##????????????????????????????????????????????? | | ####????????????????????????????????????????????? | | ####????????????????????????????????????????????? | | ??????????????????????????????????? "???????????# | | ??????????????????????????????????? ???????????? | | ??????????????????????????????????? ???????????? | | ???????????????????????????????????# ???????????? | | ???????????????????????????????????# ? ???????# | | ???????????????????????????????????# ???????# | | ??????????????????????????????????? " ""??#??? | | ???????????????????????????????????#"""" " ""??? | | ??????????????????????????????????## """" """??# | | ????????########???????????####??## """"" "???? | | ???????## "" ####???????## #??# """ ?????? | | ??????## < *"" ##??????# ##?# " ????????# | | ??????# "" #???#### #??# #?????????# | | ????### ## #"" ##### # #??# ##?????????# | | ????# #######""" ## ##?## #?????????? | | ##### ##???## """" # % ##?## #?????????? | | ## "#????## "" ## @ #?## #??????????? | | ##??## "" #R #?# ##??????????? | | ## "#??# " "" ## ### #???????????? | | ### "#### "" "" ## ###???????????? | | ###""# ## ##" " ### ##?????????????? | | ## ## =#?## ## ##??????????????? | | # ## %##?#######???????????????? | | ### ### = ##??????????????????????? | | ####?# ##?##### #??????????????????????? | | ##????## ##??????## ########???????????????? | | " #??????###??????### ##???###????????? | | ##???????????????# ##### #????????? | | ##???????????????# * &#????????? | | #????????????????# ### &&&#????????? | | ##????????????????# ##?## #### !%##????????? | | ##?????????????????####????####??#######?????????? | | ?????????????????????????????????????????????????? | | ?????????????????????????????????????????????????? | | ?????????????????????????????????????????????????? | | ?????????????????????????????????????????????????? | | ?????????????????????????????????????????????????? | | ?????????????????????????????????????????????????? | | ?????????????????????????????????????????????????? | | ?????????????????????????????????????????????????? | | ?????????????????????????????????????????????????? | +----------------------------------------------------+ Best States ------------- Heat Dissipation 25 Energy Generation 15 Energy Capacity 250 Matter Stores 300 Matter Capacity 300 Sight Range 16 Terrain Scan Range 16 Terrain Scan Density 10 Armor Coverage 150 Core Shielding 20 Evasion (%) 44 Recoil Reduction 2 Item Schematics ----------------- ECM Suite | -10/Materials | Hacked Robot Schematics ------------------ None Fabricated ------------ Nothing Repaired ---------- Nothing Alien Tech Used ----------------- None Achievements -------------- None Challenges ------------ None Game ------ Seed PortableDirectedSystem Manual? 0 Play Time 00:20:55 Cumulative 275.4 hours Start 2025.06.25 @ 11:05:35 End 2025.06.25 @ 11:30:24 Sessions 1 Manual Loads 0 Difficulty Rogue Special Mode None Game No. 136 Rogue 136 Adventurer 0 Explorer 0 Win Type - Total 17 Types 6/0/5/1/4/1/0/0/0/0 Lore% 83 Gallery% 72 Achievement% 68 Wizard Run 0 Options --------- Layout 1 ASCII 0 Keyboard 0 Movement Numpad Keybinds 0 Fullscreen 1 Font 24/Smallcaps Map View 50x35 Zoom Use 0% Tactical HUD 1 Map Filters NONE Filters NONE Steam 1 RUN: d5b5d997-e9d7-4508-a7f0-f1511e1dcd57